bitfinex/quotes_BTCUSD_20251212
["timestamp","ask_amount","ask_price","bid_price","bid_amount"]
[1765535579732,0.35239106,92518.0,92517.0,0.00051777]
[1765535580664,0.29198267,92518.0,92517.0,0.00051777]
[1765535580865,0.24747868,92518.0,92517.0,0.04013777]
[1765535581640,0.24647868,92518.0,92517.0,0.04013777]
[1765535582057,0.24647868,92518.0,92517.0,0.04113777]
[1765535582264,0.23402868,92518.0,92517.0,0.04113777]
[1765535582462,0.23402868,92518.0,92517.0,0.04213777]
[1765535582869,0.23402868,92518.0,92517.0,0.00251777]
[1765535583072,0.29005787,92518.0,92517.0,0.00251777]
[1765535583356,0.29005787,92518.0,92517.0,0.00151777]
[1765535583556,0.24555388,92518.0,92517.0,0.04013777]
[1765535583782,0.24555388,92518.0,92517.0,0.04113777]
[1765535584276,0.24555388,92518.0,92517.0,0.04013777]
[1765535584454,0.24555388,92518.0,92517.0,0.04113777]
[1765535584660,0.23402868,92518.0,92517.0,0.04213777]
[1765535596795,0.23402868,92518.0,92517.0,0.00251777]
[1765535596981,0.28892267,92518.0,92517.0,0.00251777]
[1765535598671,0.30137267,92518.0,92517.0,0.00251777]
[1765535600194,0.29098267,92518.0,92517.0,0.00251777]
[1765535603805,0.29098267,92518.0,92517.0,0.04303777]
[1765535603806,0.22943868,92518.0,92517.0,0.04303777]
[1765535604011,0.24647868,92518.0,92517.0,0.04303777]
[1765535605314,0.21617414,92518.0,92517.0,0.04303777]
[1765535605513,0.23321414,92518.0,92517.0,0.04303777]
[1765535606880,0.39315794,92518.0,92517.0,0.00251777]
[1765535607142,0.38276794,92518.0,92517.0,0.00251777]
[1765535607471,0.34865395,92518.0,92517.0,0.00251777]
[1765535607728,0.39315794,92518.0,92517.0,0.00251777]
[1765535608551,0.39315794,92518.0,92517.0,0.00151777]
[1765535608762,0.39315794,92518.0,92517.0,0.00051777]
[1765535608965,0.39597248,92518.0,92517.0,0.00151777]
[1765535609167,0.39697248,92518.0,92517.0,0.00151777]
[1765535609692,0.44699087,92518.0,92517.0,0.00151777]
[1765535610124,0.74782184,92518.0,92517.0,0.00151777]
[1765535612387,0.65316203,92518.0,92517.0,0.00151777]
[1765535612629,0.63264106,92518.0,92517.0,0.00151777]
[1765535612818,0.64303106,92518.0,92517.0,0.00151777]
[1765535617000,0.66579106,92518.0,92517.0,0.00151777]
[1765535634048,0.66579106,92518.0,92517.0,0.01298777]
[1765535634049,0.55519267,92518.0,92517.0,0.01298777]
[1765535634274,0.28153267,92518.0,92517.0,0.00151777]
[1765535635355,0.23702868,92518.0,92517.0,0.00151777]
[1765535637382,0.28153267,92518.0,92517.0,0.00151777]
[1765535641079,0.41282029,92518.0,92517.0,0.00151777]
[1765535641284,0.46283868,92518.0,92517.0,0.00151777]
[1765535641485,0.49530173,92518.0,92517.0,0.00151777]
[1765535641697,0.50542852,92518.0,92517.0,0.00151777]
[1765535658459,0.49530173,92518.0,92517.0,0.00151777]
[1765535658668,0.50542893,92518.0,92517.0,0.00151777]
[1765535659181,0.79612893,92518.0,92517.0,0.00151777]
[1765535659388,1.04412893,92518.0,92517.0,0.00151777]
[1765535660127,1.04312893,92518.0,92517.0,0.00151777]
[1765535660491,1.04512893,92518.0,92517.0,0.00151777]
[1765535660911,1.04312893,92518.0,92517.0,0.00151777]
[1765535661120,3.04712893,92518.0,92517.0,0.00151777]
[1765535661329,3.04512893,92518.0,92517.0,0.00051777]
[1765535661566,2.98358494,92518.0,92517.0,0.00051777]
[1765535661776,1.49018331,92518.0,92517.0,0.00151777]
[1765535662190,1.48618331,92518.0,92517.0,0.00051777]
[1765535662397,0.93462131,92518.0,92517.0,0.00051777]
[1765535662596,1.29258731,92518.0,92517.0,0.00151777]
[1765535663022,1.39909493,92518.0,92517.0,0.00051777]
[1765535663228,1.39509493,92518.0,92517.0,0.00051777]
[1765535663421,1.40009493,92518.0,92517.0,0.00151777]
[1765535666939,1.42924838,92518.0,92517.0,0.00151777]
[1765535667175,1.40009493,92518.0,92517.0,0.00151777]
[1765535688987,1.43899414,92518.0,92517.0,0.00151777]
[1765535695211,1.42195414,92518.0,92517.0,0.00151777]
[1765535695424,1.43899414,92518.0,92517.0,0.00151777]
[1765535695824,1.30105652,92518.0,92517.0,0.00151777]
[1765535696032,0.51257893,92518.0,92517.0,0.04256777]
[1765535696297,0.48702868,92518.0,92517.0,0.04256777]
[1765535696843,0.46998868,92518.0,92517.0,0.04256777]
[1765535697046,0.48702868,92518.0,92517.0,0.04256777]
[1765535697457,0.27085454,92518.0,92517.0,0.04256777]
[1765535697603,0.46998868,92518.0,92517.0,0.04256777]
[1765535697810,0.48202868,92518.0,92517.0,0.04156777]
[1765535698185,0.24981454,92518.0,92517.0,0.04556777]
[1765535698388,0.26604,92518.0,92517.0,0.04556777]
[1765535698593,0.48221414,92518.0,92517.0,0.04556777]
[1765535698791,0.26604,92518.0,92517.0,0.04556777]
[1765535699199,0.48221414,92518.0,92517.0,0.04556777]
[1765535699820,0.23421414,92518.0,92517.0,0.04556777]
[1765535701578,0.01804,92518.0,92517.0,0.04556777]
[1765535702129,0.23421414,92518.0,92517.0,0.04556777]
[1765535703363,0.24693393,92518.0,92517.0,0.02071777]
[1765535703584,0.24693393,92518.0,92517.0,0.00451777]
[1765535704030,0.23421414,92518.0,92517.0,0.00451777]
[1765535704269,0.23421414,92518.0,92517.0,0.04480777]
[1765535704792,0.01804,92518.0,92517.0,0.04480777]
[1765535705417,0.23421414,92518.0,92517.0,0.0456061]
[1765535709297,0.001,92518.0,92517.0,0.0456061]
[1765535709605,0.01804,92518.0,92517.0,0.26178258]
[1765535715531,0.01804,92518.0,92517.0,0.0456061]
[1765535715753,0.01804,92518.0,92517.0,0.26178258]
[1765535716750,0.01804,92518.0,92517.0,0.0456061]
[1765535717394,0.01804,92518.0,92517.0,0.26178258]
[1765535720156,0.01804,92518.0,92517.0,0.0456061]
[1765535721156,0.01804,92518.0,92517.0,0.26178258]
[1765535721380,0.01804,92518.0,92517.0,0.0456061]
[1765535722823,0.01804,92518.0,92517.0,0.26178258]
[1765535723607,0.30519206,92518.0,92517.0,0.0456061]
[1765535723927,0.01804,92518.0,92517.0,0.0456061]
[1765535724122,0.01804,92518.0,92517.0,0.26178258]
[1765535724548,0.01804,92518.0,92517.0,0.0456061]
[1765535724549,0.23421414,92518.0,92517.0,0.0456061]
[1765535724755,0.01804,92518.0,92517.0,0.0456061]
[1765535725980,0.23421414,92518.0,92517.0,0.0456061]
[1765535727456,0.01804,92518.0,92517.0,0.26178258]
[1765535727834,0.01804,92518.0,92517.0,0.0456061]
[1765535729109,0.23421414,92518.0,92517.0,0.0456061]
[1765535748607,0.24460414,92518.0,92517.0,0.00451777]
[1765535748803,0.39869902,92518.0,92517.0,0.00451777]
[1765535749005,0.43116316,92518.0,92517.0,0.00451777]
[1765535749568,0.43016316,92518.0,92517.0,0.00251777]
[1765535750086,0.43316316,92518.0,92517.0,0.00351777]
[1765535750492,0.43016316,92518.0,92517.0,0.00051777]
[1765535750826,0.40269902,92518.0,92517.0,0.00151777]
[1765535751201,0.40169902,92518.0,92517.0,0.00151777]
[1765535751436,0.40469902,92518.0,92517.0,0.00151777]
[1765535752232,0.39456061,92518.0,92517.0,0.00151777]
[1765535753021,0.35633106,92518.0,92517.0,0.00151777]
[1765535759331,0.60433106,92518.0,92517.0,0.00151777]
[1765535767777,0.61579106,92518.0,92517.0,0.00151777]
[1765535769077,0.91660629,92518.0,92517.0,0.00151777]
[1765535769279,2.49645529,92518.0,92517.0,0.00151777]
[1765535769504,2.60696291,92518.0,92517.0,0.00151777]
[1765535774146,2.57152391,92518.0,92517.0,0.00151777]
[1765535776286,2.60072008,92518.0,92517.0,0.00151777]
[1765535777399,2.57152391,92518.0,92517.0,0.00151777]
[1765535781835,2.53764091,92518.0,92517.0,0.00151777]
[1765535784432,2.40245691,92518.0,92517.0,0.00151777]
[1765535788944,2.40246595,92518.0,92517.0,0.00151777]
[1765535796308,2.44136516,92518.0,92517.0,0.00151777]
[1765535798421,2.40246595,92518.0,92517.0,0.00151777]
[1765535799569,0.3107456,92497.0,92490.0,0.0002]
[1765535799792,0.37534751,92497.0,92490.0,0.0002]
[1765535800011,0.38573751,92497.0,92490.0,0.0002]
[1765535800301,0.39006702,92497.0,92496.0,0.00099286]
[1765535801718,0.39206702,92497.0,92496.0,0.00199286]
[1765535801916,0.50257464,92497.0,92496.0,0.00199286]
[1765535802080,0.50057464,92497.0,92496.0,0.00099286]
[1765535802310,0.50157464,92497.0,92496.0,0.00099286]
[1765535802515,0.49045037,92497.0,92496.0,0.00099286]
[1765535802922,0.49145037,92497.0,92496.0,0.00099286]
[1765535803328,0.49345037,92497.0,92496.0,0.00199286]
[1765535803690,0.74145037,92497.0,92496.0,0.00199286]
[1765535810581,0.56607511,92497.0,92496.0,0.00199286]
[1765535810811,0.48426322,92497.0,92496.0,0.04278119]
[1765535811011,0.46722322,92497.0,92496.0,0.04278119]
[1765535811216,0.48426322,92497.0,92496.0,0.04278119]
[1765535812266,0.48326322,92497.0,92496.0,0.04278119]
[1765535813961,0.48126322,92497.0,92496.0,0.04178119]
[1765535814797,0.48326322,92497.0,92496.0,0.04278119]
[1765535817187,0.26704,92497.0,92496.0,0.25900675]
[1765535818289,0.26704,92497.0,92496.0,0.04278119]
[1765535818909,0.48326322,92497.0,92496.0,0.04278119]
[1765535819115,0.26704,92497.0,92496.0,0.04278119]
[1765535819318,0.26704,92497.0,92496.0,0.25900675]
[1765535821532,0.01904,92497.0,92496.0,0.25900675]
[1765535821935,0.01904,92497.0,92496.0,0.04278119]
[1765535822430,0.07832348,92497.0,92496.0,0.04278119]
[1765535822634,0.23526322,92497.0,92496.0,0.01867119]
[1765535822889,0.23526322,92497.0,92496.0,0.00279119]
[1765535823094,0.27976721,92497.0,92496.0,0.00279119]
[1765535823994,0.30054721,92497.0,92496.0,0.00279119]
[1765535824207,0.40997656,92497.0,92496.0,0.00279119]
[1765535825111,0.39958656,92497.0,92496.0,0.00279119]
[1765535827180,0.45999495,92497.0,92496.0,0.00199286]
[1765535827623,0.70799495,92497.0,92496.0,0.00199286]
[1765535827825,0.71232437,92497.0,92496.0,0.00199286]
[1765535828900,1.00302437,92497.0,92496.0,0.00199286]
[1765535840149,1.0131433,92497.0,92496.0,0.00199286]
[1765535840355,1.01314261,92497.0,92496.0,0.00199286]
[1765535843236,0.85577502,92497.0,92496.0,0.00199286]
[1765535843445,0.80575663,92497.0,92496.0,0.00199286]
[1765535843661,0.46622322,92497.0,92496.0,0.04326119]
[1765535843877,0.48326322,92497.0,92496.0,0.04326119]
[1765535844087,0.46622322,92497.0,92496.0,0.04326119]
[1765535844286,0.48326322,92497.0,92496.0,0.04326119]
[1765535847728,0.48326322,92497.0,92496.0,0.00279119]
[1765535848659,0.48326322,92497.0,92496.0,0.00199286]
[1765535848856,0.52776721,92497.0,92496.0,0.00199286]
[1765535853231,0.52776721,92497.0,92496.0,0.02589286]
[1765535853438,0.52776721,92497.0,92496.0,0.01380286]
[1765535853638,0.5700327,92497.0,92496.0,0.01380286]
[1765535853973,0.52552871,92497.0,92496.0,0.00199286]
[1765535854245,0.5700327,92497.0,92496.0,0.00199286]
[1765535856751,0.52776721,92497.0,92496.0,0.00199286]
[1765535860052,0.55406161,92497.0,92496.0,0.00199286]
[1765535860267,0.5985656,92497.0,92496.0,0.00199286]
[1765535860691,0.55406161,92497.0,92496.0,0.00199286]
[1765535860895,0.60869364,92497.0,92496.0,0.00199286]
[1765535861111,2.04468195,92497.0,92496.0,0.00199286]
[1765535861347,2.01548926,92497.0,92496.0,1e-08]
[1765535861576,0.91152053,92497.0,92496.0,1e-08]
[1765535861780,0.87861364,92497.0,92496.0,1e-08]
[1765535862010,0.87861364,92497.0,92490.0,0.0002]
[1765535862011,0.21623725,92491.0,92490.0,0.0002]
[1765535862224,0.23327725,92491.0,92490.0,0.00099833]
[1765535862427,0.23327725,92491.0,92490.0,0.01700833]
[1765535862854,0.23327725,92491.0,92490.0,0.04090833]
[1765535863059,0.23527725,92491.0,92490.0,0.04190833]
[1765535863302,0.23527725,92491.0,92490.0,0.01800833]
[1765535863505,0.23527725,92491.0,92490.0,0.04190833]
[1765535863708,0.23627725,92491.0,92490.0,0.04190833]
[1765535863907,0.23527725,92491.0,92490.0,0.04190833]
[1765535864317,0.23427725,92491.0,92490.0,0.04090833]
[1765535864729,0.23627725,92491.0,92490.0,0.04190833]
[1765535865180,0.23627725,92491.0,92490.0,0.00199833]
[1765535865181,0.34678487,92491.0,92490.0,0.00199833]
[1765535865718,0.34678487,92491.0,92490.0,0.02589833]
[1765535866122,0.23627725,92491.0,92490.0,0.02589833]
[1765535866321,0.23627725,92491.0,92490.0,0.04190833]
[1765535867736,0.23305025,92491.0,92490.0,0.04190833]
[1765535869086,0.27755424,92491.0,92490.0,0.04190833]
[1765535870299,0.23305025,92491.0,92490.0,0.04190833]
[1765535871055,0.27755424,92491.0,92490.0,0.04190833]
[1765535871182,0.23305025,92491.0,92490.0,0.04190833]
[1765535872211,0.27755424,92491.0,92490.0,0.04190833]
[1765535872425,0.23305025,92491.0,92490.0,0.04190833]
[1765535875124,0.27755424,92491.0,92490.0,0.04190833]
[1765535875734,0.23305025,92491.0,92490.0,0.04190833]
[1765535876978,0.27755424,92491.0,92490.0,0.04190833]
[1765535877182,0.23305025,92491.0,92490.0,0.04190833]
[1765535877975,0.27755424,92491.0,92490.0,0.04190833]
[1765535878602,0.23305025,92491.0,92490.0,0.04190833]
[1765535879188,0.27755424,92491.0,92490.0,0.04190833]
[1765535880314,0.23305025,92491.0,92490.0,0.04190833]
[1765535880942,0.27755424,92491.0,92490.0,0.04190833]
[1765535881401,0.23305025,92491.0,92490.0,0.04190833]
[1765535881611,0.23305025,92491.0,92490.0,0.00199833]
[1765535881824,0.37234095,92491.0,92490.0,0.00199833]
[1765535882332,0.37234095,92491.0,92490.0,0.00207365]
[1765535883912,0.38273095,92491.0,92490.0,0.00127532]
[1765535884511,0.37234095,92491.0,92490.0,0.00127532]
[1765535887692,0.27755424,92491.0,92490.0,0.00127532]
[1765535887897,0.23305025,92491.0,92490.0,0.04051532]
[1765535889056,0.27755424,92491.0,92490.0,0.01692532]
[1765535889210,0.27755424,92491.0,92490.0,0.00127532]
[1765535891231,0.27755424,92491.0,92490.0,0.04051532]
[1765535892432,0.23305025,92491.0,92490.0,0.04051532]
[1765535892636,0.27755424,92491.0,92490.0,0.00127532]
[1765535892927,0.28794424,92491.0,92490.0,0.00127532]
[1765535893103,0.39312095,92491.0,92490.0,0.00127532]
[1765535894097,0.40325799,92491.0,92490.0,0.00127532]
[1765535895424,0.39312095,92491.0,92490.0,0.00127532]
[1765535895781,0.26051424,92491.0,92490.0,0.00127532]
[1765535895993,0.23305025,92491.0,92490.0,0.00127532]
[1765535896401,0.27755424,92491.0,92490.0,0.00127532]
[1765535898036,0.33796263,92491.0,92490.0,0.00127532]
[1765535898180,0.34835263,92491.0,92490.0,0.00127532]
[1765535898401,0.45255493,92491.0,92490.0,0.00127532]
[1765535901659,0.43551493,92491.0,92490.0,0.00127532]
[1765535901898,0.45255493,92491.0,92490.0,0.00127532]
[1765535902818,0.34835263,92491.0,92490.0,0.00127532]
[1765535904661,0.59635263,92491.0,92490.0,0.00127532]
[1765535904900,0.61971021,92491.0,92490.0,0.00127532]
[1765535911977,0.60932021,92491.0,92490.0,0.00127532]
[1765535912359,0.57557263,92491.0,92490.0,0.00127532]
[1765535920536,0.59635263,92491.0,92490.0,0.00127532]
[1765535920673,0.61971021,92491.0,92490.0,0.00127532]
[1765535921078,0.73021783,92491.0,92490.0,0.00127532]
[1765535922238,0.74035704,92491.0,92490.0,0.00127532]
[1765535925487,0.62984812,92491.0,92490.0,0.00127532]
[1765535933390,0.63417796,92491.0,92490.0,0.00127532]
[1765535941589,0.62378796,92491.0,92490.0,0.00127532]
[1765535941868,0.63417796,92491.0,92490.0,0.00127532]
[1765535942069,0.61339796,92491.0,92490.0,0.00127532]
[1765535942470,0.59004038,92491.0,92490.0,0.00127532]
[1765535942615,0.57300038,92491.0,92490.0,0.00127532]
[1765535942818,0.59004038,92491.0,92490.0,0.00127532]
[1765535943460,0.57990247,92491.0,92490.0,0.00127532]
[1765535943793,0.48538009,92491.0,92490.0,0.00127532]
[1765535944154,0.52988408,92491.0,92490.0,0.00127532]
[1765535944358,0.48538009,92491.0,92490.0,0.00127532]
[1765535944599,0.52988408,92491.0,92490.0,0.00127532]
[1765535944802,0.48538009,92491.0,92490.0,0.00127532]
[1765535945013,0.52988408,92491.0,92490.0,0.00127532]
[1765535945235,0.48538009,92491.0,92490.0,0.00127532]
[1765535945437,0.52988408,92491.0,92490.0,0.00127532]
[1765535945643,0.6403917,92491.0,92490.0,0.00127532]
[1765535945853,0.67388365,92491.0,92490.0,0.00127532]
[1765535946367,0.69466365,92491.0,92490.0,0.00127532]
[1765535946974,0.74468204,92491.0,92490.0,0.00127532]
[1765535948370,0.73429204,92491.0,92490.0,0.00127532]
[1765535949459,0.61339442,92491.0,92490.0,0.00127532]
[1765535949799,0.59003684,92491.0,92490.0,0.00127532]
[1765535954159,0.49551446,92491.0,92490.0,0.00127532]
[1765535954321,0.49551446,92491.0,92490.0,0.04209532]
[1765535954743,0.49551446,92491.0,92490.0,0.01718532]
[1765535955480,0.49551446,92491.0,92490.0,0.00127532]
[1765535955863,0.60602208,92491.0,92490.0,0.00127532]
[1765535956068,0.62937966,92491.0,92490.0,0.00127532]
[1765535956427,0.61924529,92491.0,92490.0,0.00127532]
[1765535956857,0.51887354,92491.0,92490.0,0.00127532]
[1765535957079,0.48538009,92491.0,92490.0,0.00127532]
[1765535957943,0.52988408,92491.0,92490.0,0.00127532]
[1765535958588,0.54001983,92491.0,92490.0,0.00127532]
[1765535964468,0.54002024,92491.0,92490.0,0.00127532]
[1765535965574,0.65052786,92491.0,92490.0,0.00127532]
[1765535965773,0.6738804,92491.0,92490.0,0.00127532]
[1765535968972,0.56337278,92491.0,92490.0,0.00127532]
[1765535969197,0.54002024,92491.0,92490.0,0.00127532]
[1765535975020,0.49551625,92491.0,92490.0,0.00127532]
[1765535975223,0.54002024,92491.0,92490.0,0.00127532]
[1765535985356,0.55041024,92491.0,92490.0,0.00127532]
[1765535985685,0.54002024,92491.0,92490.0,0.00127532]
[1765535988491,0.53981537,92491.0,92490.0,0.00127532]
[1765535991791,0.47827138,92491.0,92490.0,0.03973532]
[1765535991916,0.48084538,92491.0,92490.0,0.04053365]
[1765535993785,0.23284538,92491.0,92490.0,0.04053365]
[1765536006934,0.23284538,92491.0,92490.0,0.01722365]
[1765536007135,0.39289559,92491.0,92490.0,0.00127532]
[1765536007337,0.40328559,92491.0,92490.0,0.00127532]
[1765536007763,0.40432559,92491.0,92490.0,0.00127532]
[1765536008259,0.41471559,92491.0,92490.0,0.00127532]
[1765536010318,0.25466538,92491.0,92490.0,0.00127532]
[1765536011517,0.24427538,92491.0,92490.0,0.00127532]
[1765536011716,0.28877937,92491.0,92490.0,0.00127532]
[1765536018275,0.29916937,92491.0,92490.0,0.00127532]
[1765536018500,0.30955937,92491.0,92490.0,0.00127532]
[1765536020307,0.29916937,92491.0,92490.0,0.00127532]
[1765536021163,0.30955937,92491.0,92490.0,0.00127532]
[1765536022953,0.29916937,92491.0,92490.0,0.00127532]
[1765536025434,0.30955937,92491.0,92490.0,0.00127532]
[1765536025838,0.33045378,92491.0,92490.0,0.00127532]
[1765536026336,0.63679799,92491.0,92490.0,0.00127532]
[1765536026543,0.68130198,92491.0,92490.0,0.00127532]
[1765536028326,0.66040757,92491.0,92490.0,0.00127532]
[1765536028923,0.61590358,92491.0,92490.0,0.00127532]
[1765536029139,0.66040757,92491.0,92490.0,0.00127532]
[1765536029656,0.90840757,92491.0,92490.0,0.00127532]
[1765536034393,0.90740757,92491.0,92490.0,0.00127532]
[1765536034594,1.01891519,92491.0,92490.0,0.00127532]
[1765536034824,1.01791519,92491.0,92490.0,0.00127532]
[1765536035254,1.01891519,92491.0,92490.0,0.00127532]
[1765536035453,1.01691519,92491.0,92490.0,0.00027532]
[1765536035684,1.01691519,92491.0,92490.0,0.00127532]
[1765536035882,1.01991519,92491.0,92490.0,0.00127532]
[1765536036243,1.01691519,92491.0,92490.0,0.00027532]
[1765536036646,1.01991519,92491.0,92490.0,0.00127532]
[1765536038318,0.90940757,92491.0,92490.0,0.00127532]
[1765536053709,0.89901757,92491.0,92490.0,0.00127532]
[1765536054389,0.90940757,92491.0,92490.0,0.00127532]
[1765536060571,0.86490358,92491.0,92490.0,0.00127532]
[1765536060773,0.90940757,92491.0,92490.0,0.00127532]
[1765536073396,0.89927776,92491.0,92490.0,0.00127532]
[1765536073608,0.90941742,92491.0,92490.0,0.00127532]
[1765536074408,0.88198742,92491.0,92490.0,0.00127532]
[1765536074764,0.84413343,92491.0,92490.0,0.00127532]
[1765536075101,0.88863742,92491.0,92490.0,0.00127532]
[1765536081452,0.58779776,92491.0,92490.0,0.02613532]
[1765536081668,0.58779776,92491.0,92490.0,0.00127532]
[1765536090203,0.58779776,92491.0,92490.0,0.05399365]
[1765536090204,0.46480538,92491.0,92490.0,0.05399365]
[1765536090423,0.48184538,92491.0,92490.0,0.05399365]
[1765536091249,0.47784538,92491.0,92490.0,0.05299365]
[1765536093152,0.47984538,92491.0,92490.0,0.05399365]
[1765536099441,0.52434937,92491.0,92490.0,0.05399365]
[1765536100057,0.52434937,92491.0,92490.0,0.03048365]
[1765536100289,0.52434937,92491.0,92490.0,0.05399365]
[1765536105437,0.47984538,92491.0,92490.0,0.05399365]
[1765536108657,0.52434937,92491.0,92490.0,0.05399365]
[1765536109304,0.47984538,92491.0,92490.0,0.05399365]
[1765536109889,0.52434937,92491.0,92490.0,0.05399365]
[1765536110265,0.47984538,92491.0,92490.0,0.05399365]
[1765536112673,0.23184538,92491.0,92490.0,0.05399365]
[1765536131623,0.23184538,92491.0,92490.0,0.0756176]
[1765536132157,0.23184538,92491.0,92490.0,0.05399365]
[1765536136263,0.27634937,92491.0,92490.0,0.05399365]
[1765536142545,0.01904,92491.0,92490.0,0.05399365]
[1765536142748,0.23527725,92491.0,92490.0,0.06602828]
[1765536142951,0.01904,92491.0,92490.0,0.05399365]
[1765536143164,0.23527725,92491.0,92490.0,0.05399365]
[1765536145641,0.01904,92491.0,92490.0,0.27023324]
[1765536145848,0.01904,92491.0,92490.0,0.05399365]
[1765536146028,0.01904,92491.0,92490.0,0.0756176]
[1765536146754,0.01904,92491.0,92490.0,0.29185719]
[1765536146985,0.01904,92491.0,92490.0,0.27023324]
[1765536147394,0.01904,92491.0,92490.0,0.05399365]
[1765536147806,0.01904,92491.0,92490.0,0.27023324]
[1765536148018,0.01904,92491.0,92490.0,0.05399365]
[1765536148458,0.23527725,92491.0,92490.0,0.05399365]
[1765536148664,0.01904,92491.0,92490.0,0.05399365]
[1765536149233,0.23527725,92491.0,92490.0,0.05399365]
[1765536150245,0.01904,92491.0,92490.0,0.05399365]
[1765536150451,0.23527725,92491.0,92490.0,0.05399365]
[1765536157055,0.01904,92491.0,92490.0,0.27023324]
[1765536159655,0.01704,92491.0,92490.0,0.26923324]
[1765536160243,0.01704,92491.0,92490.0,0.27323324]
[1765536161122,0.001,92491.0,92490.0,0.27723324]
[1765536161324,0.001,92491.0,92490.0,0.31613739]
[1765536161499,0.001,92491.0,92490.0,0.30969562]
[1765536162497,0.001,92491.0,92490.0,0.34858932]
[1765536164280,0.001,92491.0,92490.0,0.30969562]
[1765536170186,0.21723725,92491.0,92490.0,0.06099365]
[1765536173808,0.21102115,92491.0,92490.0,0.06099365]
[1765536174749,0.25552514,92491.0,92490.0,0.06099365]
[1765536174963,0.25552514,92491.0,92490.0,0.03748365]
[1765536175198,0.25552514,92491.0,92490.0,0.03668532]
[1765536175399,0.21102115,92491.0,92490.0,0.03668532]
[1765536175778,0.21102115,92491.0,92490.0,0.06024532]
[1765536180571,0.21102115,92491.0,92490.0,0.03668532]
[1765536180773,0.21102115,92491.0,92490.0,0.05986532]
[1765536189925,0.21102115,92491.0,92490.0,0.02047532]
[1765536190127,0.21102115,92491.0,92490.0,0.00827532]
[1765536190600,0.21102115,92491.0,92490.0,0.04687532]
[1765536191071,0.25552514,92491.0,92490.0,0.04687532]
[1765536191738,0.21102115,92491.0,92490.0,0.04687532]
[1765536204356,0.21623725,92491.0,92490.0,0.04687532]
[1765536204561,0.02785162,92493.0,92490.0,0.06849927]
[1765536204763,0.24408419,92493.0,92492.0,0.02812]
[1765536205172,0.24408419,92493.0,92492.0,0.05181]
[1765536206498,0.24408419,92493.0,92492.0,0.05581]
[1765536206891,0.24508419,92493.0,92492.0,0.05581]
[1765536207183,0.24408419,92493.0,92492.0,0.05581]
[1765536207612,0.24508419,92493.0,92492.0,0.05981]
[1765536219839,0.38244694,92493.0,92492.0,0.008]
[1765536220019,0.72316533,92493.0,92492.0,0.008]
[1765536220633,0.72316533,92493.0,92492.0,0.004]
[1765536220864,0.73116533,92493.0,92492.0,0.004]
[1765536221054,0.73116533,92493.0,92492.0,0.007]
[1765536221296,0.73116533,92493.0,92492.0,0.004]
[1765536221891,0.55144124,92491.0,92490.0,0.00027532]
[1765536222131,0.67233886,92491.0,92490.0,0.00027532]
[1765536222372,0.68272886,92491.0,92490.0,0.00027532]
[1765536222583,0.68705828,92491.0,92490.0,0.00027532]
[1765536223020,0.68905828,92491.0,92490.0,0.00127532]
[1765536224183,0.69005828,92491.0,92490.0,0.00127532]
[1765536224722,0.74007667,92491.0,92490.0,0.00127532]
[1765536226617,0.62956905,92491.0,92490.0,0.00127532]
[1765536241967,2.63966084,92491.0,92490.0,0.00127532]
[1765536242916,2.63966103,92491.0,92490.0,0.00127532]
[1765536244096,2.13572103,92491.0,92490.0,0.00127532]
[1765536252265,2.09088103,92491.0,92490.0,0.00127532]
[1765536252852,2.20138865,92491.0,92490.0,0.00127532]
[1765536254145,2.09088103,92491.0,92490.0,0.00127532]
[1765536257731,1.89982303,92491.0,92490.0,0.00127532]
[1765536258198,2.14782303,92491.0,92490.0,0.00127532]
[1765536259874,1.82892703,92491.0,92490.0,0.00127532]
[1765536263424,1.73862803,92491.0,92490.0,0.00127532]
[1765536263630,1.83864223,92491.0,92490.0,0.00127532]
[1765536263831,1.83866021,92491.0,92490.0,0.00127532]
[1765536264927,1.73864601,92491.0,92490.0,0.00127532]
[1765536265688,1.76784955,92491.0,92490.0,0.00127532]
[1765536268236,1.73864601,92491.0,92490.0,0.00127532]
[1765536270022,1.7677777,92491.0,92490.0,0.00127532]
[1765536270847,1.76778174,92491.0,92490.0,0.00127532]
[1765536271414,1.73865005,92491.0,92490.0,0.00127532]
[1765536272091,1.76276358,92491.0,92490.0,0.00127532]
[1765536273717,1.79189598,92491.0,92490.0,0.00127532]
[1765536274208,1.76778245,92491.0,92490.0,0.00127532]
[1765536278164,1.73865005,92491.0,92490.0,0.00127532]
[1765536278392,1.69414606,92491.0,92490.0,0.00127532]
[1765536278532,1.72826005,92491.0,92490.0,0.00127532]
[1765536278726,1.73865005,92491.0,92490.0,0.00127532]
[1765536280390,1.76778215,92491.0,92490.0,0.00127532]
[1765536280989,1.87828977,92491.0,92490.0,0.00127532]
[1765536282722,1.76778215,92491.0,92490.0,0.00127532]
[1765536285021,1.66872415,92491.0,92490.0,0.00127532]
[1765536285378,1.14128915,92491.0,92490.0,0.00127532]
[1765536285633,0.88394305,92491.0,92490.0,0.00127532]
[1765536285851,0.87382905,92491.0,92490.0,0.00127532]
[1765536286925,0.53862506,92491.0,92490.0,0.00127532]
[1765536287999,0.58312905,92491.0,92490.0,0.00127532]
[1765536300172,0.60390905,92491.0,92490.0,0.00127532]
[1765536302600,0.55940506,92491.0,92490.0,0.00127532]
[1765536302813,1.47705549,92491.0,92490.0,0.00127532]
[1765536303026,1.50618759,92491.0,92490.0,0.00127532]
[1765536304308,1.47705549,92491.0,92490.0,0.00127532]
[1765536325931,1.43721362,92491.0,92490.0,0.00127532]
[1765536328204,1.46634572,92491.0,92490.0,0.00127532]
[1765536328396,1.43721362,92491.0,92490.0,0.00127532]
[1765536333510,1.36527963,92491.0,92490.0,0.00127532]
[1765536333720,0.82239863,92491.0,92490.0,0.00127532]
[1765536333923,0.53862506,92491.0,92490.0,0.00127532]
[1765536342237,0.58312905,92491.0,92490.0,0.00127532]
[1765536343623,0.53862506,92491.0,92490.0,0.00127532]
[1765536343965,0.96061268,92491.0,92490.0,0.00127532]
[1765536344171,1.04812053,92491.0,92490.0,0.00127532]
[1765536344298,2.43835657,92491.0,92490.0,0.00127532]
[1765536346153,2.4655817,92491.0,92490.0,0.00127532]
[1765536346388,2.4675817,92491.0,92490.0,0.00127532]
[1765536346926,2.4655817,92491.0,92490.0,0.00027532]
[1765536347130,2.4685817,92491.0,92490.0,0.00127532]
[1765536349976,2.35807408,92491.0,92490.0,0.00127532]
[1765536350157,1.58485408,92491.0,92490.0,0.00127532]
[1765536350389,1.57285408,92491.0,92490.0,0.00127532]
[1765536350908,1.50355595,92491.0,92490.0,0.00127532]
[1765536354142,1.26759295,92491.0,92490.0,0.00127532]
[1765536354656,1.23669295,92491.0,92490.0,0.00127532]
[1765536371135,1.25998062,92491.0,92490.0,0.00127532]
[1765536373264,1.28914765,92491.0,92490.0,0.00127532]
[1765536375371,0.90257562,92491.0,92490.0,0.00127532]
[1765536375575,0.60841672,92491.0,92490.0,0.00127532]
[1765536375998,0.62892112,92491.0,92490.0,0.00127532]
[1765536376221,0.61880672,92491.0,92490.0,0.00127532]
[1765536377653,0.62919672,92491.0,92490.0,0.00127532]
[1765536382027,0.76795072,92491.0,92490.0,0.00127532]